bitfinex/quotes_SOLUSD_20220307
["timestamp","ask_amount","ask_price","bid_price","bid_amount"]
[1646653621831,24.6402,83.143,83.091,6.37304369]
[1646653622254,6.015,83.142,83.091,6.37304369]
[1646653622450,6.015,83.142,83.092,121.5]
[1646653622651,6.015,83.142,83.101,121.5]
[1646653622852,24.7763,83.15,83.102,127.86173616]
[1646653623051,24.7763,83.15,83.103,6.014]
[1646653623252,28.15801725,83.176,83.105,121.5]
[1646653623450,28.15801725,83.176,83.104,6.25]
[1646653623451,6.013,83.175,83.111,121.5]
[1646653623651,6.013,83.175,83.112,133.763]
[1646653624552,22.5334,83.189,83.131,121.5]
[1646653624753,22.5334,83.189,83.13,18.043]
[1646653624754,6.011,83.188,83.132,133.761]
[1646653625354,22.5334,83.189,83.132,133.761]
[1646653625555,6.011,83.195,83.14,18.0416]
[1646653625754,6.011,83.195,83.141,12.261]
[1646653626860,6.011,83.195,83.142,121.5]
[1646653627056,24.9118,83.205,83.15,18.0393]
[1646653627057,6.011,83.204,83.15,18.0393]
[1646653627257,6.011,83.204,83.151,0.25]
[1646653627858,57.22218625,83.203,83.151,0.25]
[1646653628058,6.011,83.202,83.151,60.69]
[1646653628259,5.5,83.201,83.151,60.69]
[1646653628459,6.011,83.2,83.151,60.69]
[1646653630060,0.12499164,83.199,83.151,60.69]
[1646653630259,6.011,83.198,83.151,78.3689]
[1646653631759,6.011,83.198,83.153,0.17648338]
[1646653632360,6.0,83.199,83.153,0.17648338]
[1646653632559,6.011,83.202,83.153,0.17648338]
[1646653632761,6.0,83.201,83.153,0.17648338]
[1646653633163,57.22218625,83.203,83.153,0.42648338]
[1646653633365,6.0,83.202,83.153,0.42648338]
[1646653635869,6.0,83.202,83.153,60.86648338]
[1646653636166,6.011,83.201,83.154,6.0]
[1646653636364,57.22218625,83.203,83.155,0.25]
[1646653636566,57.22218625,83.203,83.153,60.86648338]
[1646653639767,6.0,83.202,83.153,60.86648338]
[1646653639968,12.011,83.202,83.153,60.86648338]
[1646653640170,12.011,83.202,83.154,6.011]
[1646653640368,12.011,83.202,83.155,0.25]
[1646653641670,6.0,83.202,83.156,6.011]
[1646653641869,6.0,83.202,83.157,6.25]
[1646653642269,6.0,83.202,83.158,6.0]
[1646653642469,6.0,83.202,83.159,0.25]
[1646653643071,24.9118,83.205,83.159,0.25]
[1646653643273,24.9118,83.205,83.161,60.44]
[1646653643472,6.0,83.204,83.162,0.25]
[1646653646078,6.0,83.204,83.163,60.7951844]
[1646653646278,6.0,83.203,83.165,0.3551844]
[1646653646478,30.7836,83.22,83.165,0.3551844]
[1646653646678,6.0,83.219,83.166,60.44]
[1646653646879,65.01937107,83.218,83.167,0.25]
[1646653647280,6.01,83.218,83.167,0.25]
[1646653647480,30.7836,83.22,83.167,6.25]
[1646653647679,30.7836,83.22,83.171,60.44]
[1646653647879,30.7836,83.22,83.172,0.25]
[1646653648280,59.36684507,83.219,83.172,0.25]
[1646653649400,6.0,83.218,83.172,0.25]
[1646653649803,6.0,83.218,83.172,6.25]
[1646653650800,6.0,83.218,83.172,23.9968]
[1646653651001,6.0,83.218,83.173,60.44]
[1646653651201,6.0,83.218,83.174,6.25]
[1646653652805,0.16263851,83.217,83.173,60.44]
[1646653653004,0.29468343,83.215,83.173,60.44]
[1646653653205,0.33659933,83.213,83.173,60.44]
[1646653653404,0.3398437,83.211,83.173,60.44]
[1646653653604,6.01,83.21,83.173,60.44]
[1646653653805,0.14873613,83.208,83.173,60.44]
[1646653654006,12.52846845,83.207,83.173,60.44]
[1646653654205,6.76846845,83.206,83.173,60.44]
[1646653654405,63.92953609,83.205,83.173,60.44]
[1646653654605,6.76846845,83.204,83.173,60.44]
[1646653654810,6.01,83.203,83.173,60.44]
[1646653655408,6.01,83.204,83.173,60.44]
[1646653656111,3.24621725,83.218,83.173,60.44]
[1646653656310,6.51811539,83.219,83.173,60.44]
[1646653656509,6.009,83.218,83.174,0.25]
[1646653656815,6.51811539,83.217,83.174,0.25]
[1646653657009,6.009,83.216,83.174,0.25]
[1646653657311,6.51811539,83.215,83.174,0.25]
[1646653657508,6.01,83.214,83.174,0.25]
[1646653658109,6.01,83.217,83.174,0.25]
[1646653658510,50.86052161,83.218,83.174,0.25]
[1646653659611,12.52684437,83.217,83.174,0.25]
[1646653659816,6.009,83.217,83.174,0.25]
[1646653660013,6.009,83.219,83.174,0.25]
[1646653660415,6.51802943,83.218,83.174,0.25]
[1646653660614,69.31376254,83.217,83.174,0.25]
[1646653660814,0.23228685,83.216,83.174,0.25]
[1646653661014,6.009,83.215,83.174,0.25]
[1646653661216,0.23228685,83.214,83.174,0.25]
[1646653661416,63.30476254,83.217,83.174,0.25]
[1646653661815,6.51823393,83.216,83.174,0.25]
[1646653662016,0.13982734,83.215,83.174,0.25]
[1646653662217,6.51823393,83.214,83.174,0.25]
[1646653662718,0.13982734,83.213,83.174,0.25]
[1646653663217,63.30476254,83.217,83.174,0.25]
[1646653663416,6.51861435,83.216,83.174,0.25]
[1646653664817,6.51861435,83.216,83.174,6.25]
[1646653665020,63.30476254,83.217,83.174,6.25]
[1646653665219,6.51831249,83.216,83.174,6.25]
[1646653665621,6.51831249,83.216,83.173,60.44]
[1646653665818,7.3,83.216,83.173,60.44]
[1646653666019,0.19175472,83.214,83.173,60.44]
[1646653666218,12.52857563,83.213,83.173,60.44]
[1646653666420,6.51857563,83.212,83.173,60.44]
[1646653666619,6.01,83.211,83.173,60.44]
[1646653666820,24.55997563,83.21,83.173,60.44]
[1646653667023,0.22966164,83.208,83.173,60.44]
[1646653667221,12.52857563,83.207,83.173,60.44]
[1646653667419,0.22966164,83.206,83.173,60.44]
[1646653667623,6.01,83.207,83.173,60.44]
[1646653667624,6.01,83.209,83.173,60.44]
[1646653667821,6.51869605,83.208,83.173,60.44]
[1646653668021,6.01,83.207,83.173,60.44]
[1646653668420,6.01,83.213,83.173,60.44]
[1646653668621,6.01,83.213,83.174,0.25]
[1646653668820,17.7033,83.245,83.174,0.25]
[1646653668821,3.24621725,83.224,83.174,0.25]
[1646653669022,6.51783116,83.219,83.174,0.25]
[1646653671725,0.18551023,83.218,83.174,0.25]
[1646653671925,6.51783116,83.217,83.174,0.25]
[1646653672124,0.18551023,83.216,83.174,0.25]
[1646653672324,6.51783116,83.215,83.174,0.25]
[1646653672725,12.52783116,83.219,83.174,0.25]
[1646653672926,6.51783116,83.218,83.174,0.25]
[1646653673126,6.009,83.217,83.174,0.25]
[1646653673325,6.51783116,83.216,83.174,0.25]
[1646653673527,6.009,83.215,83.174,0.25]
[1646653673930,6.51783116,83.214,83.174,0.25]
[1646653674131,6.01,83.213,83.174,0.25]
[1646653674532,6.51857752,83.212,83.174,0.25]
[1646653674750,9.76479477,83.218,83.174,6.25]
[1646653674949,24.7736,83.22,83.174,6.25]
[1646653675552,24.7736,83.22,83.175,6.009]
[1646653675749,24.7736,83.22,83.176,6.25]
[1646653675953,24.7736,83.22,83.177,6.009]
[1646653676250,24.7736,83.22,83.178,6.25]
[1646653676450,24.7736,83.22,83.179,6.009]
[1646653676651,24.7736,83.22,83.18,0.25]
[1646653676851,24.7736,83.22,83.181,6.009]
[1646653677051,24.7736,83.22,83.182,0.25]
[1646653678250,24.7736,83.22,83.18,0.25]
[1646653679055,0.12322165,83.219,83.175,60.44]
[1646653679251,0.27256727,83.217,83.175,60.44]
[1646653679550,0.31046673,83.215,83.175,60.44]
[1646653679753,0.41972162,83.209,83.175,60.44]
[1646653679951,58.18595269,83.209,83.175,60.44]
[1646653680151,0.41972162,83.207,83.175,60.44]
[1646653680351,6.01,83.206,83.175,60.44]
[1646653680754,6.01,83.208,83.175,60.44]
[1646653682663,57.76623107,83.209,83.175,60.44]
[1646653683364,6.51906841,83.208,83.175,60.44]
[1646653683765,57.76623107,83.209,83.175,60.44]
[1646653684166,12.52900913,83.208,83.175,60.44]
[1646653684367,6.01,83.208,83.175,60.44]
[1646653685067,6.01,83.214,83.176,0.25]
[1646653685266,3.24621725,83.223,83.176,0.25]
[1646653685467,6.009,83.222,83.176,0.25]
[1646653685766,6.51827177,83.219,83.176,0.25]
[1646653686170,6.009,83.218,83.176,0.25]
[1646653686371,6.51827177,83.217,83.176,0.25]
[1646653686672,6.009,83.216,83.176,0.25]
[1646653686870,6.51827177,83.215,83.176,0.25]
[1646653687272,6.51827177,83.218,83.176,0.25]
[1646653687473,6.009,83.217,83.176,0.25]
[1646653687672,6.51827177,83.216,83.176,0.25]
[1646653687872,6.51827177,83.216,83.174,0.25]
[1646653688072,6.51827177,83.218,83.174,0.25]
[1646653688372,6.009,83.217,83.174,0.25]
[1646653688575,6.51827177,83.216,83.174,0.25]
[1646653688972,6.51827177,83.218,83.174,0.25]
[1646653689573,6.009,83.217,83.174,0.25]
[1646653689976,6.51827177,83.216,83.174,0.25]
[1646653690378,6.51827177,83.219,83.174,0.25]
[1646653690578,3.24621725,83.223,83.174,6.25]
[1646653690777,3.24621725,83.227,83.175,6.009]
[1646653690977,3.24621725,83.237,83.177,60.44]
[1646653691179,3.24621725,83.237,83.178,6.259]
[1646653691379,3.24621725,83.24,83.19,136.18]
[1646653691580,121.5,83.284,83.19,136.18]
[1646653691581,3.24621725,83.254,83.192,121.5]
[1646653691783,3.24621725,83.266,83.194,121.5]
[1646653691978,3.24621725,83.274,83.196,121.5]
[1646653692179,3.24621725,83.28,83.21,136.18]
[1646653692379,3.24621725,83.28,83.193,6.25]
[1646653692380,4.006,83.279,83.22,136.18]
[1646653692680,4.006,83.279,83.221,6.25]
[1646653692879,6.0,83.278,83.222,6.006]
[1646653693179,6.006,83.277,83.223,6.25]
[1646653693398,6.0,83.278,83.223,6.25]
[1646653693399,6.0,83.278,83.224,6.006]
[1646653693578,6.0,83.278,83.225,6.25]
[1646653693782,57.5348517,83.282,83.225,6.25]
[1646653693783,6.005,83.281,83.225,6.25]
[1646653693980,6.0,83.28,83.225,6.25]
[1646653694181,6.005,83.279,83.226,6.005]
[1646653694380,6.005,83.279,83.227,6.25]
[1646653694982,6.005,83.279,83.227,0.25]
[1646653695180,6.0,83.28,83.227,0.25]
[1646653695382,24.0258,83.28,83.227,0.25]
[1646653695581,58.75308335,83.279,83.226,0.25]
[1646653695991,58.75308335,83.279,83.227,6.005]
[1646653696182,58.75308335,83.279,83.228,0.25]
[1646653696484,58.75308335,83.279,83.229,6.005]
[1646653696683,58.75308335,83.279,83.23,0.25]
[1646653696884,58.75308335,83.279,83.231,6.005]
[1646653697082,58.75308335,83.279,83.232,0.25]
[1646653697284,6.0,83.278,83.233,6.005]
[1646653697487,6.0,83.278,83.234,0.25]
[1646653697785,6.0,83.277,83.235,6.005]
[1646653697984,6.005,83.276,83.236,0.25]
[1646653698186,6.0,83.275,83.234,0.25]
[1646653698384,51.28450747,83.288,83.234,0.25]
[1646653698585,0.12373534,83.286,83.234,0.25]
[1646653698785,6.005,83.285,83.234,0.25]
[1646653698989,0.25,83.284,83.234,0.25]
[1646653699185,6.005,83.283,83.218,6.255]
[1646653699385,6.005,83.283,83.219,6.0]
[1646653699585,6.005,83.283,83.22,6.255]
[1646653699885,6.005,83.283,83.221,6.0]
[1646653700084,6.005,83.283,83.222,0.25]
[1646653701608,0.20314005,83.279,83.222,0.25]
[1646653701809,0.23318475,83.277,83.236,0.17497594]
[1646653702005,0.23318475,83.275,83.236,0.17497594]
[1646653702205,121.5,83.274,83.236,0.17497594]
[1646653702407,0.42822753,83.272,83.236,0.17497594]
[1646653702605,6.005,83.271,83.236,0.17497594]
[1646653702806,0.42822753,83.269,83.236,0.17497594]
[1646653703005,6.005,83.268,83.236,0.17497594]
[1646653703206,0.25,83.267,83.236,0.17497594]
[1646653703406,6.005,83.266,83.236,0.17497594]
[1646653703607,0.25,83.265,83.236,0.17497594]
[1646653703805,6.005,83.264,83.236,0.17497594]
[1646653705006,0.25,83.265,83.236,0.17497594]
[1646653705207,0.25,83.269,83.236,0.17497594]
[1646653708312,6.005,83.268,83.236,0.17497594]
[1646653708514,0.25,83.267,83.236,0.17497594]
[1646653708715,6.005,83.266,83.236,0.17497594]
[1646653708912,0.25,83.265,83.236,0.17497594]
[1646653709114,6.005,83.264,83.236,0.17497594]
[1646653711214,6.006,83.273,83.212,6.25]
[1646653711415,24.8545,83.274,83.212,6.25]
[1646653711714,6.0,83.273,83.212,6.25]
[1646653712114,48.96366506,83.272,83.212,6.25]
[1646653712319,48.96366506,83.272,83.212,66.69]
[1646653714316,50.5779258,83.272,83.212,66.69]
[1646653715416,1.61426074,83.271,83.212,66.69]
[1646653716219,1.61426074,83.267,83.212,66.69]
[1646653716724,0.30400245,83.263,83.212,60.69]
[1646653716920,1.61426074,83.26,83.212,60.69]
[1646653717120,60.79028988,83.259,83.212,60.69]
[1646653717322,1.61426074,83.258,83.212,60.69]
[1646653717523,6.007,83.257,83.212,60.69]
[1646653718224,1.61426074,83.252,83.212,60.69]
[1646653718423,1.61426074,83.251,83.212,60.69]
[1646653718623,1.61426074,83.252,83.212,60.69]
[1646653718823,1.61426074,83.251,83.212,60.69]
[1646653719424,1.61426074,83.25,83.212,60.69]
[1646653720036,19.64706074,83.25,83.205,60.44]
[1646653720230,45.68282927,83.245,83.205,60.44]
[1646653720430,47.29709001,83.245,83.205,60.44]
[1646653720931,1.61426074,83.244,83.205,60.44]
[1646653721332,1.61426074,83.238,83.206,0.25]
[1646653721533,1.61426074,83.239,83.206,0.25]
[1646653722130,1.61426074,83.24,83.206,6.25]
[1646653723833,1.61426074,83.241,83.206,6.25]
[1646653724034,1.61426074,83.24,83.206,6.25]
[1646653725334,0.17124237,83.239,83.205,60.44]
[1646653725536,50.57162844,83.235,83.205,60.44]
[1646653725834,1.61426074,83.234,83.206,0.25]
[1646653726034,50.57162844,83.235,83.206,0.25]
[1646653726435,50.57162844,83.235,83.205,60.44]
[1646653726635,0.27994282,83.234,83.205,60.44]
[1646653726834,1.61426074,83.231,83.205,60.44]
[1646653727034,1.97297974,83.23,83.205,60.44]
[1646653727437,7.62226074,83.229,83.205,60.44]
[1646653728035,1.61426074,83.228,83.205,60.44]
[1646653728335,6.008,83.227,83.205,60.44]
[1646653728534,1.61426074,83.228,83.205,60.44]
[1646653728736,1.61426074,83.229,83.205,60.44]
[1646653728936,6.008,83.228,83.205,60.44]
[1646653729535,6.008,83.229,83.205,60.44]
[1646653730536,7.62226074,83.229,83.205,60.44]
[1646653731035,6.008,83.229,83.205,60.44]
[1646653731839,6.008,83.229,83.207,0.17560018]
[1646653732440,7.62226074,83.229,83.207,0.17560018]
[1646653732640,6.008,83.229,83.207,0.17560018]
[1646653733140,7.62226074,83.229,83.207,0.17560018]
[1646653733340,1.61426074,83.23,83.207,0.17560018]
[1646653733641,1.61426074,83.231,83.207,0.17560018]
[1646653733842,6.008,83.23,83.207,0.17560018]
[1646653734543,1.61426074,83.231,83.207,0.17560018]
[1646653735142,18.0373,83.23,83.207,0.17560018]
[1646653735342,18.0373,83.23,83.174,6.008]
[1646653735343,6.258,83.229,83.174,6.008]
[1646653735541,1.61426074,83.219,83.153,6.009]
[1646653735745,0.55301968,83.218,83.153,6.009]
[1646653735942,0.30301968,83.214,83.153,6.009]
[1646653736142,18.0425,83.21,83.153,6.009]
[1646653736342,63.56376201,83.208,83.138,6.01]
[1646653736543,0.30301968,83.206,83.138,6.01]
[1646653736746,6.261,83.207,83.138,6.01]
[1646653737145,0.18477597,83.206,83.138,6.01]
[1646653737352,6.011,83.205,83.138,6.01]
[1646653737557,0.25,83.204,83.138,6.01]
[1646653737752,6.011,83.203,83.138,6.01]
[1646653738353,0.16258565,83.201,83.138,6.01]
[1646653738556,0.21617017,83.198,83.137,23.5808]
[1646653738756,0.21617017,83.196,83.137,23.5808]
[1646653738957,6.011,83.195,83.137,23.5808]
[1646653739155,0.21617017,83.193,83.137,23.5808]
[1646653739356,18.0488,83.19,83.137,23.5808]
[1646653739556,0.25,83.189,83.137,23.5808]
[1646653739959,0.25,83.189,83.138,6.011]
[1646653740260,0.25,83.189,83.139,0.25]
[1646653740460,56.0750096,83.179,83.139,0.25]
[1646653740960,56.0750096,83.179,83.138,6.011]
[1646653742172,56.0750096,83.179,83.139,0.25]
[1646653742572,121.5,83.178,83.139,0.25]
[1646653742778,0.21440967,83.177,83.139,0.25]
[1646653743174,18.0498,83.17,83.113,6.0]
[1646653743375,0.31941826,83.169,83.112,22.8652]
[1646653743575,5.013,83.168,83.112,22.8652]
[1646653743775,5.013,83.168,83.113,1.0]
[1646653744378,0.30052728,83.159,83.113,1.0]
[1646653744576,0.55052728,83.159,83.095,31.1148]
[1646653744776,0.55052728,83.159,83.095,1.0]
[1646653744777,124.88666254,83.159,83.095,1.0]
[1646653744977,0.30052728,83.156,83.079,7.0]
[1646653745178,0.25,83.156,83.079,7.0]
[1646653746278,57.83056481,83.139,83.08,18.0554]
[1646653746479,57.83056481,83.139,83.081,7.0]
[1646653748378,57.83056481,83.139,83.082,0.25]
[1646653748580,57.83056481,83.139,83.083,1.0]
[1646653748780,57.83056481,83.139,83.083,7.0]
[1646653749079,57.83056481,83.139,83.084,0.25]
[1646653749280,57.83056481,83.139,83.085,1.0]
[1646653749478,57.83056481,83.139,83.085,7.0]
[1646653749679,57.83056481,83.139,83.086,0.25]
[1646653749881,57.83056481,83.139,83.087,1.0]
[1646653750079,57.83056481,83.139,83.087,7.0]
[1646653750280,57.83056481,83.139,83.088,0.25]
[1646653750480,57.83056481,83.139,83.088,6.25]
[1646653750880,57.83056481,83.139,83.091,0.14641812]
[1646653751079,57.83056481,83.139,83.091,6.39641812]
[1646653751680,57.83056481,83.139,83.091,0.39641812]
[1646653752080,57.83056481,83.139,83.091,0.25]
[1646653752283,18.0544,83.15,83.082,0.25]
[1646653752480,0.25,83.149,83.083,0.18243874]
[1646653752682,24.4722,83.157,83.082,0.25]
[1646653752881,24.4722,83.157,83.091,121.5]
[1646653753081,24.4722,83.157,83.092,6.25]
[1646653753283,24.4722,83.157,83.093,0.13344103]
[1646653753681,24.4722,83.157,83.093,23.84914103]
[1646653753882,24.4722,83.157,83.094,6.25]
[1646653754080,24.4722,83.157,83.1,18.05]
[1646653754280,24.4722,83.157,83.101,6.25]
[1646653754883,24.4722,83.157,83.101,0.25]
[1646653755283,24.4722,83.157,83.095,0.25]
[1646653755484,18.0541,83.15,83.095,0.25]
[1646653755786,0.25,83.149,83.095,0.25]
[1646653757688,0.25,83.156,83.095,0.25]
[1646653759191,18.0542,83.15,83.095,0.25]
[1646653759390,0.25,83.149,83.095,0.25]
[1646653760393,18.0563,83.14,83.095,0.25]
[1646653760594,0.25,83.149,83.095,0.25]
[1646653760795,0.25,83.156,83.095,0.25]
[1646653761497,24.2222,83.157,83.095,0.25]
[1646653762695,18.0482,83.18,83.101,0.11083549]
[1646653762895,23.6719,83.179,83.101,6.36083549]
[1646653763096,23.6719,83.179,83.101,6.25]
[1646653763795,23.6719,83.179,83.11,18.0478]
[1646653763996,23.6719,83.179,83.111,6.25]
[1646653765899,18.0498,83.17,83.111,6.25]
[1646653769703,23.6719,83.179,83.12,18.0468]
[1646653769903,23.6719,83.179,83.121,6.64930233]
[1646653770100,23.8736,83.189,83.121,34.16670793]
[1646653770501,23.8736,83.189,83.122,27.5174056]
[1646653770701,23.8736,83.189,83.13,18.0407]
[1646653770904,1.61426074,83.207,83.14,136.18]
[1646653771104,1.61426074,83.211,83.141,6.46693642]
[1646653771302,47.886,83.228,83.141,6.46693642]
[1646653771303,1.61426074,83.215,83.141,33.98434202]
[1646653771503,1.61426074,83.218,83.141,33.98434202]
[1646653771902,54.48881454,83.215,83.141,6.46693642]
[1646653772101,54.48881454,83.215,83.15,18.0367]
[1646653772303,54.48881454,83.215,83.151,6.25]
[1646653774204,47.886,83.228,83.151,6.25]
[1646653775203,56.90950919,83.22,83.151,6.25]
[1646653775928,74.94850919,83.22,83.151,6.25]
[1646653776307,56.90950919,83.22,83.151,6.25]
[1646653778412,2.7822,83.168,83.152,121.5]
[1646653778618,47.886,83.228,83.155,121.5]
[1646653778816,47.886,83.228,83.17,32.7127]
[1646653779020,47.886,83.228,83.171,6.64930233]
[1646653779616,47.886,83.228,83.171,6.25]
[1646653779815,47.886,83.228,83.172,5.01]
[1646653780017,47.886,83.228,83.173,6.25]
[1646653780218,47.886,83.228,83.174,5.01]
[1646653780417,47.886,83.228,83.175,6.25]
[1646653780619,47.886,83.228,83.176,5.01]
[1646653780818,47.886,83.228,83.177,6.25]
[1646653781223,47.886,83.228,83.18,18.0323]
[1646653781419,47.886,83.228,83.181,6.25]
[1646653781823,57.10207329,83.238,83.181,6.25]
[1646653782824,24.6149,83.249,83.181,6.25]
[1646653783023,0.25,83.248,83.182,24.7137]
[1646653783223,0.25,83.248,83.183,6.25]
[1646653783945,56.62235177,83.248,83.183,6.25]
[1646653784147,56.62235177,83.248,83.19,18.0303]
[1646653784344,24.6149,83.249,83.191,6.25]
[1646653784546,24.6149,83.249,83.191,0.25]
[1646653784744,24.6149,83.249,83.191,6.25]
[1646653785149,24.6149,83.249,83.2,18.028]
[1646653785345,24.6149,83.249,83.201,6.25]
[1646653785948,23.1767,83.269,83.201,6.25]
[1646653786247,23.7092,83.267,83.202,30.176]
[1646653786448,23.7092,83.267,83.21,18.026]
[1646653786647,23.7092,83.267,83.211,6.25]
[1646653788149,23.7092,83.267,83.211,0.25]
[1646653788349,23.7092,83.267,83.204,0.25]
[1646653788951,23.7092,83.267,83.21,18.0259]
[1646653789149,1.61426074,83.288,83.211,6.25]
[1646653789349,23.9984,83.289,83.211,6.25]
[1646653789550,0.25,83.288,83.212,24.0326]
[1646653789849,0.25,83.288,83.213,6.25]
[1646653790051,0.25,83.288,83.22,18.0199]
[1646653790052,63.79232793,83.288,83.22,18.0199]
[1646653790249,63.79232793,83.288,83.221,6.25]
[1646653790250,6.0,83.287,83.221,6.25]
[1646653790451,0.25,83.286,83.221,6.25]
[1646653790852,0.25,83.286,83.222,24.0326]
[1646653791055,0.25,83.286,83.223,6.25]
[1646653795457,0.14662095,83.285,83.223,6.25]
[1646653795659,0.25,83.286,83.223,6.25]
[1646653798863,0.25,83.288,83.223,6.25]
[1646653800663,46.80006262,83.288,83.223,6.25]
[1646653802066,0.32907184,83.287,83.224,6.005]
[1646653802285,0.32907184,83.287,83.225,6.25]
[1646653802486,0.32907184,83.287,83.226,6.005]
[1646653802688,6.32907184,83.287,83.227,0.25]
[1646653802890,0.32907184,83.285,83.227,0.25]
[1646653803488,124.33613526,83.284,83.212,6.005]
[1646653803691,0.5834001,83.281,83.15,14.68]
[1646653803890,1.61426074,83.274,83.14,14.68]
[1646653804088,4.04853426,83.268,83.14,14.68]
[1646653804291,1.61426074,83.256,83.141,23.104]
[1646653804493,121.5,83.229,83.123,46.9319]
[1646653804694,121.5,83.225,83.124,6.011]
[1646653804892,2.19766084,83.223,83.124,12.011]
[1646653805091,0.5834001,83.216,83.124,6.0]
[1646653805291,1.61426074,83.208,83.125,6.011]
[1646653805493,62.02721658,83.198,83.125,6.011]
[1646653805691,131.91157082,83.197,83.083,24.4298]
[1646653805892,121.5,83.195,83.083,24.4298]
[1646653806092,0.8334001,83.194,83.083,24.4298]
[1646653806292,21.05441077,83.194,83.083,24.4298]
[1646653806592,0.5834001,83.192,83.084,29.6561]
[1646653806791,0.5834001,83.19,83.085,6.0]
[1646653806996,0.5834001,83.188,83.086,6.014]
[1646653807192,121.5,83.179,83.09,32.7317]
[1646653807393,122.0834001,83.177,83.091,12.014]
[1646653807692,0.5834001,83.175,83.091,12.014]
[1646653807897,122.0834001,83.175,83.091,12.014]
[1646653808092,121.5,83.173,83.091,12.014]
[1646653808293,18.0527,83.16,83.091,6.014]
[1646653808492,57.7288045,83.159,83.091,6.014]
[1646653809496,18.055,83.15,83.091,6.014]
[1646653809693,6.265,83.149,83.09,14.68]
[1646653810193,6.265,83.149,83.091,6.0]
[1646653810494,0.25,83.149,83.092,6.015]
[1646653810695,0.25,83.158,83.093,0.25]
[1646653810993,0.25,83.158,83.094,6.015]
[1646653811196,0.25,83.158,83.095,0.25]
[1646653811395,6.014,83.157,83.095,0.25]
[1646653811694,0.25,83.156,83.095,0.25]
[1646653811895,6.015,83.155,83.095,0.25]
[1646653812098,0.25,83.154,83.095,0.25]
[1646653812393,6.015,83.153,83.086,0.25]
[1646653812594,0.25,83.152,83.086,0.25]
[1646653812897,6.015,83.151,83.086,0.25]
[1646653813294,56.8954044,83.159,83.087,6.015]
[1646653813495,121.75,83.158,83.087,6.015]
[1646653813694,121.75,83.158,83.04,66.46004427]
[1646653813695,2.83613526,83.15,83.068,6.015]
[1646653813897,0.5834001,83.147,83.069,6.0]
[1646653814096,18.0631,83.13,83.052,6.0]
[1646653814296,24.3331,83.13,83.053,6.017]
[1646653814496,24.3331,83.13,83.054,6.0]
[1646653814497,69.82432095,83.129,83.054,6.0]
[1646653814700,69.82432095,83.129,83.055,6.017]
[1646653814897,69.82432095,83.129,83.056,6.0]
[1646653815097,69.82432095,83.129,83.057,6.017]
[1646653815298,0.25,83.128,83.058,6.0]
[1646653815498,6.017,83.127,83.059,6.017]
[1646653815700,0.25,83.126,83.06,6.0]
[1646653815900,6.017,83.125,83.061,6.017]
[1646653816101,18.062,83.12,83.062,6.0]
[1646653816301,6.267,83.119,83.062,6.0]